bitfinex/quotes_ETHUSD_20230109
["timestamp","ask_amount","ask_price","bid_price","bid_amount"]
[1673280920011,14.02008574,1342.1,1341.7,22.42534]
[1673280921104,8.3089,1342.1,1341.7,22.42534]
[1673280921316,8.3089,1342.1,1341.7,26.44008611]
[1673280921509,8.3089,1342.1,1341.7,28.32128756]
[1673280921701,8.3089,1342.1,1341.7,23.74734]
[1673280922111,8.3089,1342.1,1341.7,31.20057]
[1673280922314,8.3089,1342.1,1341.8,3.5]
[1673280922635,0.056,1342.1,1341.9,29.80848]
[1673280922843,0.91844499,1342.2,1341.9,29.87448]
[1673280924740,0.91844499,1342.2,1341.9,35.2188927]
[1673280924945,0.91844499,1342.2,1342.1,1.333]
[1673280925170,0.91844499,1342.2,1342.1,31.4036]
[1673280925522,0.91844499,1342.2,1342.1,31.4696]
[1673280925898,0.91844499,1342.2,1342.1,30.1366]
[1673280926167,0.92044499,1342.2,1342.1,30.1346]
[1673280926310,0.91844499,1342.2,1342.1,31.4696]
[1673280927099,0.91844499,1342.2,1342.1,24.0186]
[1673280930357,0.91844499,1342.2,1342.1,0.3326]
[1673280930574,0.91844499,1342.2,1342.0,30.30147]
[1673280930781,0.91844499,1342.2,1342.1,7.451]
[1673280930978,0.91844499,1342.2,1342.1,14.968]
[1673280931307,0.91844499,1342.2,1342.1,7.517]
[1673280931484,0.91844499,1342.2,1342.1,14.968]
[1673280932997,0.91844499,1342.2,1342.1,15.24122757]
[1673280933357,0.91844499,1342.2,1342.1,22.69222757]
[1673280934355,0.91844499,1342.2,1342.1,24.01422757]
[1673280934884,0.91844499,1342.2,1342.1,16.56322757]
[1673280935281,0.91844499,1342.2,1342.1,1.66122757]
[1673280935493,0.91844499,1342.2,1342.1,1.59522757]
[1673280935684,0.91844499,1342.2,1342.1,0.27322757]
[1673280935875,0.91844499,1342.2,1342.1,7.72422757]
[1673280936092,0.91844499,1342.2,1342.1,15.24122757]
[1673280937398,0.91844499,1342.2,1342.1,22.69222757]
[1673280937786,0.91844499,1342.2,1342.1,22.69021563]
[1673280939873,0.91844499,1342.2,1342.1,24.01221563]
[1673280940136,4.99e-06,1342.2,1342.1,27.80987627]
[1673280941257,4.99e-06,1342.2,1342.1,24.01221563]
[1673280943388,4.99e-06,1342.2,1342.1,27.80987627]
[1673280943777,2.7925641,1342.5,1342.3,22.34967]
[1673280943972,1.11616964,1342.5,1342.3,22.41567]
[1673280944444,0.007,1342.5,1342.4,2.666]
[1673280944668,0.007,1342.5,1342.4,25.77037718]
[1673280944974,0.007,1342.5,1342.4,29.33637718]
[1673280945281,0.007,1342.5,1342.4,28.87768064]
[1673280945442,0.007,1342.5,1342.4,45.87768064]
[1673280945655,0.7418126,1342.8,1342.5,3.5]
[1673280945883,0.7418126,1342.8,1342.7,14.0]
[1673280946070,0.7418126,1342.8,1342.7,28.96136]
[1673280946287,0.7418126,1342.8,1342.7,35.75902064]
[1673280946647,0.7418126,1342.8,1342.7,36.51537782]
[1673280946821,1.10916964,1343.0,1342.7,40.49115892]
[1673280947031,1.10916964,1343.0,1342.9,14.0]
[1673280947248,1.10916964,1343.0,1342.9,28.95893]
[1673280947439,2.50816964,1343.1,1342.9,0.066]
[1673280947648,6.31281696,1343.0,1342.9,14.89314]
[1673280947889,0.056,1343.0,1342.9,14.95914]
[1673280948122,1.26823114,1343.2,1342.9,0.066]
[1673280948332,1.26823114,1343.2,1342.7,14.96052]
[1673280948333,4.60916964,1343.1,1342.7,14.96052]
[1673280948524,5.94216964,1343.1,1342.7,14.96052]
[1673280948739,6.55676964,1343.1,1342.7,14.96052]
[1673280949070,6.55676964,1343.1,1342.9,7.44657]
[1673280949071,4.1146,1343.1,1342.9,7.44657]
[1673280949230,5.16776964,1343.1,1342.9,7.51257]
[1673280949440,5.22376964,1343.1,1342.9,7.51257]
[1673280949679,5.22376964,1343.1,1342.9,14.95914]
[1673280949892,4.1146,1343.1,1342.9,14.95914]
[1673280950103,6.36400585,1343.1,1342.9,14.95914]
[1673280950320,6.42000585,1343.1,1342.9,14.95914]
[1673280950695,5.31083621,1343.1,1342.9,0.066]
[1673280950906,6.64383621,1343.1,1342.8,14.064]
[1673280951129,6.64383621,1343.1,1342.8,21.51311]
[1673280951130,0.53108362,1343.0,1342.8,21.51311]
[1673280951323,0.33108362,1343.0,1342.8,21.51311]
[1673280951571,0.33108362,1343.0,1342.8,0.066]
[1673280951781,5.13066064,1342.9,1342.7,0.066]
[1673280952094,5.13066064,1342.9,1342.5,30.406]
[1673280952095,5.74106606,1342.8,1342.5,30.406]
[1673280952269,1.331,1342.7,1342.5,0.066]
[1673280952485,1.331,1342.7,1342.4,0.066]
[1673280952737,1.331,1342.7,1342.3,21.4593]
[1673280952738,1.8918,1342.6,1342.3,0.066]
[1673280952900,2.0249,1342.6,1342.2,0.06799501]
[1673280953116,2.0249,1342.6,1342.2,7.45230501]
[1673280953369,2.0249,1342.6,1342.2,7.51830501]
[1673280953698,20.71909064,1342.6,1342.2,0.06799501]
[1673280953861,3.40490906,1342.5,1342.2,0.00199501]
[1673280954078,1.333,1342.4,1342.2,0.00199501]
[1673280954277,1.8919,1342.4,1342.2,0.00199501]
[1673280954489,5.3919,1342.4,1342.2,0.00199501]
[1673280954839,3.10119,1342.3,1342.2,0.00199501]
[1673280960507,3.5,1342.4,1342.2,0.00199501]
[1673280960719,1.8229,1342.3,1342.2,0.00199501]
[1673280961042,0.5589,1342.3,1342.2,0.00199501]
[1673280961293,0.066,1342.4,1342.2,23.87741507]
[1673280961571,5.55516964,1342.6,1342.2,23.94341507]
[1673280961785,0.5588,1342.5,1342.2,23.94341507]
[1673280962149,0.5588,1342.5,1342.2,37.94555354]
[1673280962388,3.00096964,1342.6,1342.2,37.94555354]
[1673280962795,14.55429216,1342.6,1342.2,37.94555354]
[1673280963008,18.3559528,1342.6,1342.2,36.42148348]
[1673280963349,18.3559528,1342.6,1342.3,22.34967]
[1673280963350,6.89460662,1342.6,1342.3,22.34967]
[1673280963568,6.89460662,1342.6,1342.3,0.066]
[1673280963569,0.004,1342.6,1342.3,0.066]
[1673280963885,4.90683028,1342.6,1342.3,7.78564956]
[1673280964055,4.90683028,1342.6,1342.3,7.85164956]
[1673280964617,25.04531559,1342.7,1342.3,36.75142956]
[1673280964618,1.73396964,1342.7,1342.3,36.75142956]
[1673280964826,20.10966964,1342.8,1342.5,22.34634]
[1673280965019,1.11316964,1342.8,1342.5,22.41234]
[1673280965196,1.10916964,1342.8,1342.5,22.41234]
[1673280965938,11.9187641,1342.9,1342.5,22.41234]
[1673280966264,1.10916964,1342.8,1342.5,24.55099756]
[1673280967090,1.10916964,1342.8,1342.5,2.20465756]
[1673280967420,1.10916964,1342.8,1342.5,7.44878]
[1673280967750,1.10916964,1342.8,1342.6,0.33142684]
[1673280968135,1.10916964,1342.8,1342.6,7.77959684]
[1673280968371,1.10916964,1342.8,1342.6,0.39742684]
[1673280968569,28.92470474,1342.8,1342.6,0.33142684]
[1673280968779,2.89247047,1342.7,1342.6,0.33142684]
[1673280969022,28.92870474,1342.8,1342.6,0.33142684]
[1673280969023,2.8515641,1342.8,1342.6,0.33142684]
[1673280969201,1.17516964,1342.9,1342.6,22.67611684]
[1673280969411,1.10916964,1342.9,1342.6,22.74211684]
[1673280970267,2.7855641,1342.9,1342.6,22.74211684]
[1673280970489,2.7855641,1342.9,1342.6,22.64211684]
[1673280970490,1.10916964,1342.9,1342.6,22.64211684]
[1673280970710,1.10916964,1342.9,1342.7,9.71180168]
[1673280970887,16.84632559,1343.0,1342.7,24.67316168]
[1673280970888,3.033,1343.0,1342.7,24.67316168]
[1673280971094,2.967,1343.0,1342.7,25.99816168]
[1673280971325,2.967,1343.0,1342.8,16.59981617]
[1673280971546,2.967,1343.0,1342.9,22.33971]
[1673280971755,2.967,1343.0,1342.9,24.40571]
[1673280972036,2.967,1343.0,1342.9,22.40571]
[1673280972497,2.9693558,1343.0,1342.9,22.40571]
[1673280972714,2.9693558,1343.0,1342.9,23.35548267]
[1673280972927,2.9693558,1343.0,1342.9,23.65524132]
[1673280973308,2.9693558,1343.0,1342.9,16.20867132]
[1673280973765,2.9693558,1343.0,1342.9,23.65524132]
[1673280975244,5.8e-06,1343.0,1342.9,23.65524132]
[1673280975409,0.0930615,1343.2,1342.9,23.65524132]
[1673280975621,0.0930615,1343.2,1343.1,22.33638]
[1673280975825,0.0930615,1343.2,1343.1,29.84784]
[1673280976256,0.0930615,1343.2,1343.1,22.40238]
[1673280976461,0.0930615,1343.2,1343.1,14.95692]
[1673280976792,0.0930615,1343.2,1343.1,15.25376589]
[1673280977232,0.0930615,1343.2,1343.1,22.69922589]
[1673280977449,1.5e-06,1343.2,1343.1,24.96915048]
[1673280977931,1.5e-06,1343.2,1343.1,22.69922589]
[1673280979986,1.5e-06,1343.2,1343.1,26.41733646]
[1673280980188,1.5e-06,1343.2,1343.1,32.06404064]
[1673280980503,1.5e-06,1343.2,1343.1,27.75033646]
[1673280980673,1.5e-06,1343.2,1343.1,30.75033646]
[1673280980878,1.5e-06,1343.2,1343.1,35.61436431]
[1673280981081,1.5e-06,1343.2,1343.1,39.92506715]
[1673280981928,1.5e-06,1343.2,1343.1,35.61436431]
[1673280982187,1.5e-06,1343.2,1343.1,39.92337905]
[1673280982396,0.2,1343.3,1343.2,0.0019985]
[1673280982614,1.18702024,1343.6,1343.3,33.27696]
[1673280982615,0.0118506,1343.6,1343.3,33.27696]
[1673280982766,0.0118506,1343.6,1343.5,1.333]
[1673280982968,0.0118506,1343.6,1343.4,21.50928]
[1673280983194,0.0118506,1343.6,1343.4,28.95307]
[1673280983406,19.53836964,1343.8,1343.4,28.95307]
[1673280983617,3.79766064,1343.7,1343.4,0.066]
[1673280983852,28.56290028,1343.6,1343.5,0.21824734]
[1673280984020,4.91083028,1343.6,1343.5,0.21824734]
[1673280984229,4.60916964,1343.6,1343.5,0.21824734]
[1673280984497,1.17516964,1343.7,1343.5,0.21824734]
[1673280984658,2.67951696,1343.6,1343.5,0.21824734]
[1673280985021,9.17951696,1343.6,1343.3,0.28238898]
[1673280985234,6.74191696,1343.6,1343.3,7.66061898]
[1673280985392,6.74191696,1343.6,1343.3,7.72661898]
[1673280985600,3.79766064,1343.5,1343.3,0.28238898]
[1673280985815,2.97676606,1343.4,1343.3,0.21638898]
[1673280986064,3.1555,1343.4,1343.3,0.21638898]
[1673280986275,1.264,1343.4,1343.3,0.21638898]
[1673280987136,12.50545064,1343.4,1343.3,0.21638898]
[1673280987445,19.95324064,1343.4,1343.3,0.21638898]
[1673280987602,30.79298567,1343.4,1343.3,0.21638898]
[1673280988028,15.90540567,1343.4,1343.3,0.21638898]
[1673280988757,30.79298567,1343.4,1343.3,0.21638898]
[1673280989433,23.34919567,1343.4,1343.3,0.21638898]
[1673280989806,34.56615531,1343.4,1343.3,0.21638898]
[1673280990068,3.5,1343.3,1343.2,0.0019985]
[1673280990236,25.8347,1343.2,1343.0,0.066]
[1673280990434,3.79766064,1343.1,1342.7,37.85864]
[1673280990642,3.79766064,1343.0,1342.7,0.071]
[1673280990852,3.79766064,1343.0,1342.7,7.44763]
[1673280991103,3.79766064,1343.0,1342.7,14.96631]
[1673280991529,4.2398867,1343.0,1342.7,14.96631]
[1673280991739,4.2398867,1343.0,1342.7,7.51863]
[1673280992112,4.2398867,1343.0,1342.7,14.96631]
[1673280992365,4.2398867,1343.0,1342.7,7.51863]
[1673280992578,4.2398867,1343.0,1342.7,14.96631]
[1673280992791,0.42398867,1342.9,1342.7,14.96631]
[1673280992983,4.2438867,1343.0,1342.7,22.41399]
[1673280993196,4.2398867,1343.0,1342.7,22.41399]
[1673280994061,1.75119713,1342.9,1342.7,14.96631]
[1673280994421,1.75119713,1342.9,1342.7,22.41399]
[1673280994648,1.75119713,1342.9,1342.7,14.96631]
[1673280995281,1.75119713,1342.9,1342.7,22.41399]
[1673280996769,1.74917496,1342.9,1342.7,22.41399]
[1673280996945,13.73221177,1342.9,1342.7,0.071]
[1673280997160,22.51600177,1342.9,1342.6,0.071]
[1673280997370,15.06921177,1342.9,1342.6,7.44813]
[1673280997575,7.62264177,1342.9,1342.6,7.51913]
[1673280997816,7.62264177,1342.9,1342.6,22.41559]
[1673280998043,22.51592177,1342.9,1342.6,7.51913]
[1673280998218,29.96256177,1342.9,1342.6,0.071]
[1673280998473,29.96256177,1342.9,1342.5,44.34537]
[1673280998474,29.96256177,1342.9,1342.5,44.41637]
[1673280999026,29.96256177,1342.9,1342.5,29.5193]
[1673280999214,4.828,1342.7,1342.5,0.071]
[1673280999559,5.13066064,1342.6,1342.4,0.10884555]
[1673280999781,5.13466064,1342.6,1342.4,0.03784555]
[1673280999947,3.79766064,1342.5,1342.4,0.03784555]
[1673281000165,4.3111267,1342.5,1342.4,0.03784555]
[1673281000882,0.51346606,1342.5,1342.4,0.03784555]
[1673281001090,1.399,1342.6,1342.4,14.93652555]
[1673281001091,1.333,1342.6,1342.4,14.93652555]
[1673281001295,5.13066064,1342.6,1342.4,0.10884555]
[1673281001562,3.79766064,1342.5,1342.4,0.03784555]
[1673281001721,5.12166064,1342.5,1342.4,0.03784555]
[1673281001935,6.88299803,1342.5,1342.4,0.03784555]
[1673281002201,7.71079783,1342.5,1342.4,0.03784555]
[1673281003821,24.50015783,1342.5,1342.4,0.03784555]
[1673281004151,31.94893783,1342.5,1342.4,0.03784555]
[1673281004345,33.05721776,1342.5,1342.4,0.03784555]
[1673281004556,31.94893783,1342.5,1342.4,0.03784555]
[1673281005008,3.5,1342.4,1342.2,0.00199501]
[1673281005239,5.48066064,1342.3,1342.2,0.00199501]
[1673281005460,34.00782894,1342.3,1342.2,0.00199501]
[1673281005760,34.68463675,1342.3,1342.2,0.00199501]
[1673281005922,39.72084523,1342.3,1342.2,0.00199501]
[1673281006136,8.029,1342.2,1342.0,0.03784555]
[1673281006388,29.61756064,1342.1,1342.0,0.03784555]
[1673281006600,33.18056064,1342.1,1342.0,0.03784555]
[1673281007129,8.029,1342.0,1341.8,0.0404644]
[1673281007337,24.94306064,1341.9,1341.7,0.03935827]
[1673281007660,13.91433064,1341.8,1341.7,0.03935827]
[1673281007965,17.9594537,1341.8,1341.7,0.03935827]
[1673281008186,23.43926844,1341.8,1341.7,0.03935827]
[1673281008505,27.96826844,1341.8,1341.7,0.03935827]
[1673281009191,35.42093844,1341.8,1341.6,0.0378422]
[1673281009435,10.99266064,1341.7,1341.6,0.0378422]
[1673281009610,13.53654001,1341.7,1341.6,0.0378422]
[1673281009823,20.98977001,1341.7,1341.6,0.0378422]
[1673281010031,8.029,1341.5,1341.3,0.0433689]
[1673281010291,11.32666064,1341.4,1341.3,0.0433689]
[1673281010449,25.25023919,1341.4,1341.3,0.0433689]
[1673281011094,3.5,1341.3,1341.1,2.81937554]
[1673281011324,25.25023919,1341.4,1341.1,2.81937554]
[1673281011325,6.45666064,1341.2,1341.1,2.81937554]
[1673281011533,6.46066064,1341.2,1341.1,2.81937554]
[1673281011747,6.46066064,1341.2,1341.0,0.071]
[1673281011748,6.46066064,1341.2,1341.0,0.067]
[1673281012076,3.86166064,1341.2,1341.0,25.8713]
[1673281012235,1.335,1341.3,1341.0,29.277866]
[1673281012236,0.066,1341.3,1341.0,29.277866]
[1673281012446,3.79766064,1341.3,1341.0,29.277866]
[1673281013077,3.79766064,1341.3,1341.0,21.820746]
[1673281013288,3.79766064,1341.2,1341.0,18.48118]
[1673281013512,3.79766064,1341.2,1341.0,11.02406]
[1673281013749,3.79766064,1341.2,1341.0,14.98118]
[1673281013924,5.60769013,1341.2,1341.0,14.98118]
[1673281014142,5.67169013,1341.2,1341.0,2.52406]
[1673281014350,6.23905914,1341.2,1341.0,9.91418]
[1673281014596,3.79766064,1341.1,1341.0,0.067]
[1673281014757,3.79966064,1341.1,1341.0,14.91388]
[1673281014968,3.79766064,1341.1,1341.0,14.98088]
[1673281015216,3.79766064,1341.1,1341.0,22.438]
[1673281015652,2.4433985,1341.2,1341.0,14.98088]
[1673281015821,5.85202998,1341.2,1341.0,9.98088]
[1673281016012,5.91602998,1341.2,1341.0,9.98088]
[1673281016227,5.91602998,1341.2,1341.0,17.438]
[1673281016436,3.79766064,1341.1,1341.0,0.067]
[1673281016702,3.79766064,1341.1,1340.9,7.52425]
[1673281017009,3.79766064,1341.1,1340.9,14.98192]
[1673281017256,0.54302949,1341.2,1341.1,2.9604506]
[1673281017537,4.27469013,1341.2,1341.1,10.4170106]
[1673281017703,4.27469013,1341.2,1341.1,10.4840106]
[1673281017914,3.79766064,1341.2,1341.1,10.4840106]
[1673281018120,0.066,1341.3,1341.1,25.3971306]
[1673281018377,3.79766064,1341.3,1341.1,25.3971306]
[1673281018707,3.79766064,1341.2,1341.1,3.0274506]
[1673281019017,3.79766064,1341.2,1341.1,2.9604506]
[1673281020255,5.13066064,1341.2,1341.1,2.9604506]
[1673281020481,5.19466064,1341.2,1341.1,2.9604506]
[1673281020868,3.86166064,1341.2,1341.1,2.9604506]
[1673281021078,4.25264331,1341.2,1341.1,2.9604506]
[1673281021907,4.7296728,1341.2,1341.1,2.9604506]
[1673281022441,12.1856728,1341.2,1341.1,2.9604506]
[1673281022656,16.7786728,1341.2,1341.1,2.9604506]
[1673281022896,9.3226728,1341.2,1341.1,2.9604506]
[1673281023222,4.7936728,1341.2,1341.1,2.9604506]
[1673281023377,6.5066728,1341.2,1341.1,2.9604506]
[1673281023582,18.5556728,1341.2,1341.1,2.9604506]
[1673281023797,26.0116728,1341.2,1341.1,2.9604506]
[1673281024374,33.4676728,1341.2,1341.1,2.9604506]
[1673281024542,26.0116728,1341.2,1341.1,2.9604506]
[1673281024762,3.5,1341.1,1340.9,0.067]
[1673281024968,15.15878064,1341.0,1340.8,0.7418126]
[1673281025278,5.57466064,1340.9,1340.8,0.7418126]
[1673281025524,5.63866064,1340.9,1340.8,0.7418126]
[1673281025739,5.63866064,1340.9,1340.8,23.1165026]
[1673281025740,1.841,1340.9,1340.8,23.1165026]
[1673281026053,1.841,1340.9,1340.8,0.8088126]
[1673281026054,3.79766064,1340.9,1340.8,0.8088126]
[1673281026213,5.7664257,1340.9,1340.8,0.7418126]
[1673281026424,5.8304257,1340.9,1340.8,0.7418126]
[1673281026756,7.6064257,1340.9,1340.8,0.7418126]
[1673281027293,5.63766064,1340.9,1340.8,8.2000426]
[1673281027472,5.63766064,1340.9,1340.8,23.1835026]
[1673281027473,0.064,1340.9,1340.8,23.1835026]
[1673281027682,0.002,1341.0,1340.9,3.60775045]
[1673281027683,0.124,1341.0,1340.9,3.60775045]
[1673281027936,0.124,1341.0,1340.9,36.43843045]
[1673281028150,0.124,1341.0,1340.9,36.50543045]
[1673281028363,1e-08,1341.0,1340.9,36.50543045]
[1673281028522,1e-08,1341.0,1340.9,40.28611476]
[1673281030311,1e-08,1341.0,1340.9,22.54776045]
[1673281032568,3.79766065,1341.0,1340.9,22.54776045]
[1673281034020,5.55666065,1341.0,1340.9,0.50915594]
[1673281034236,5.56066065,1341.0,1340.9,0.44215594]
[1673281035279,6.12016065,1341.0,1340.9,0.44215594]
[1673281035493,9.42835072,1341.0,1340.9,0.44215594]
[1673281035704,15.92835072,1341.0,1340.9,0.44215594]
[1673281035924,25.14947072,1341.0,1340.9,0.44215594]
[1673281036653,37.13559072,1341.0,1340.9,0.44215594]
[1673281036988,23.80034989,1341.0,1340.9,0.10775045]
[1673281037677,31.25746989,1341.0,1340.9,0.10775045]
[1673281037886,29.67847072,1341.0,1340.9,0.41312002]
[1673281038139,45.08159072,1341.0,1340.9,0.41312002]
[1673281038310,53.2950679,1341.0,1340.9,0.41312002]
[1673281039002,45.8379479,1341.0,1340.9,0.41312002]
[1673281039154,53.2950679,1341.0,1340.9,0.41312002]
[1673281039367,61.2890679,1341.0,1340.9,0.41312002]
[1673281039626,22.24835072,1341.0,1340.9,0.41312002]
[1673281040222,29.70547072,1341.0,1340.9,0.41312002]
[1673281040427,37.16259072,1341.0,1340.9,0.41312002]
[1673281040897,37.16259072,1341.0,1340.9,0.36312002]
[1673281041086,45.3760679,1341.0,1340.9,0.36312002]
[1673281041465,53.3220679,1341.0,1340.9,0.36312002]
[1673281042521,30.9507079,1341.0,1340.9,0.36312002]
[1673281042727,22.24835072,1341.0,1340.9,0.36312002]
[1673281042972,22.24835072,1341.0,1340.9,7.82079002]
[1673281043180,22.24835072,1341.0,1340.9,7.88779002]
[1673281043389,22.24835072,1341.0,1340.9,0.43012002]
[1673281043599,22.24835072,1341.0,1340.9,0.36312002]
[1673281043826,22.24835072,1341.0,1340.9,0.29424138]
[1673281044441,18.74835072,1341.0,1340.9,0.29424138]
[1673281044999,33.66259072,1341.0,1340.9,0.29424138]
[1673281045165,41.11971072,1341.0,1340.9,0.29424138]
[1673281046001,49.06571072,1341.0,1340.9,0.29424138]
[1673281046470,24.44147072,1341.0,1340.9,0.29424138]
[1673281046660,21.44147072,1341.0,1340.9,0.29424138]
[1673281046868,28.89859072,1341.0,1340.9,0.29424138]
[1673281047369,21.44147072,1341.0,1340.9,0.29424138]
[1673281047819,7.66935072,1341.0,1340.9,7.75191138]
[1673281048010,3.80166065,1341.0,1340.9,22.73425138]
[1673281048224,3.79766065,1341.0,1340.9,7.81891138]
[1673281048580,3.79766065,1341.0,1340.9,15.27658138]
[1673281048949,3.79766065,1341.0,1340.9,22.73425138]
[1673281048950,1e-08,1341.0,1340.9,22.73425138]
[1673281049195,1e-08,1341.0,1340.9,25.82763478]
[1673281049386,0.77895968,1341.4,1340.9,28.16313478]
[1673281049589,0.77895968,1341.4,1341.0,3.5]
[1673281049801,5.63727993,1341.5,1341.1,7.45645]
[1673281050041,7.3041632,1341.5,1341.1,7.52345]
[1673281050364,1.83869625,1341.4,1341.1,0.067]
[1673281050575,1.83869625,1341.4,1341.0,7.5237]
[1673281050576,3.79766064,1341.3,1341.0,7.5237]
[1673281050736,3.79766064,1341.1,1341.0,0.067]
[1673281050937,8.32666064,1341.1,1340.9,0.05775045]
[1673281051148,4.6303267,1341.0,1340.9,0.05775045]
[1673281052248,6.3933267,1341.0,1340.9,0.05775045]
[1673281052564,6.3973267,1341.0,1340.9,0.05775045]
[1673281052807,4.6343267,1341.0,1340.9,0.05775045]
[1673281052952,4.6303267,1341.0,1340.9,7.51542045]
[1673281053147,4.6303267,1341.0,1340.9,7.58242045]
[1673281053691,4.6303267,1341.0,1340.9,0.12475045]
[1673281054024,6.4073267,1341.0,1340.9,0.05775045]
[1673281054365,9.9708267,1341.0,1340.9,0.05775045]
[1673281054531,9.4113267,1341.0,1340.9,0.05775045]
[1673281054744,9.4113267,1341.0,1340.9,0.31569702]
[1673281055010,9.4113267,1341.0,1340.9,7.77336702]
[1673281055161,9.4113267,1341.0,1340.9,7.84036702]
[1673281055582,9.4113267,1341.0,1340.9,0.38269702]
[1673281055838,0.69941064,1341.0,1340.9,30.14637702]
[1673281056050,0.69541064,1341.0,1340.9,30.21337702]
[1673281057271,0.5593,1341.3,1340.9,30.21337702]
[1673281057472,3.79766064,1341.2,1341.1,7.45645]
[1673281057717,0.066,1341.3,1341.1,23.531995]
[1673281057933,2.99347939,1341.5,1341.3,29.8218]
[1673281057934,1.95322819,1341.5,1341.3,29.8218]
[1673281058145,1.95322819,1341.5,1341.3,29.8888]
[1673281058146,4.90594057,1341.5,1341.3,29.8888]
[1673281058320,6.56882384,1341.5,1341.3,22.43335]
[1673281058531,4.90994057,1341.5,1341.3,14.9779]
[1673281058785,4.90594057,1341.5,1341.3,7.52245]
[1673281058966,4.90594057,1341.5,1341.3,0.067]
[1673281059177,3.79766064,1341.4,1341.2,0.067]
[1673281059515,4.90594057,1341.4,1341.1,7.52309]
[1673281059726,4.90594057,1341.4,1341.1,0.067]
[1673281060043,4.90594057,1341.4,1341.0,37.22186]
[1673281060545,3.79766064,1341.3,1341.0,37.22186]
[1673281060765,3.79766064,1341.3,1341.0,22.99666]
[1673281061150,1.17427993,1341.4,1341.0,22.99666]
[1673281061537,1.17427993,1341.4,1341.2,29.824]
[1673281061538,1.10827993,1341.4,1341.2,29.824]
[1673281061681,1.10827993,1341.4,1341.2,29.891]
[1673281061891,5.7711632,1341.5,1341.2,29.891]
[1673281062135,9.57282384,1341.5,1341.2,29.891]
[1673281062347,7.90994057,1341.5,1341.2,29.891]
[1673281062561,9.57282384,1341.5,1341.2,29.891]
[1673281064034,7.90994057,1341.5,1341.2,29.891]
[1673281065250,4.90994057,1341.5,1341.2,29.891]
[1673281065457,4.90594057,1341.5,1341.2,25.7241]
[1673281065682,4.90594057,1341.4,1341.2,22.435]
[1673281066105,3.79766064,1341.4,1341.2,22.435]
[1673281067804,3.79766064,1341.4,1341.2,14.979]
[1673281068019,4.90594057,1341.4,1341.2,7.523]
[1673281068348,4.2882547,1341.3,1341.2,7.5228]
[1673281068501,4.2882547,1341.3,1341.2,22.4348]
[1673281069185,14.03883463,1341.3,1341.2,0.067]
[1673281069503,2.57031435,1341.1,1341.0,0.096]
[1673281069659,8.12797499,1341.1,1340.9,0.31569702]
[1673281069870,3.79766064,1341.0,1340.9,0.31569702]
[1673281071784,3.79766064,1341.0,1340.9,0.05775045]
[1673281072395,19.82626291,1341.0,1340.9,0.05775045]
[1673281072602,23.67073816,1341.0,1340.9,0.05775045]
[1673281073441,23.80954213,1341.0,1340.9,0.05775045]
[1673281073859,23.67073816,1341.0,1340.9,0.05775045]
[1673281074026,24.03954213,1341.0,1340.9,0.05775045]
[1673281074336,23.90073816,1341.0,1340.9,0.05775045]
[1673281074551,17.00311816,1341.0,1340.9,0.05775045]
[1673281074715,23.90073816,1341.0,1340.9,0.05775045]
[1673281075131,16.44361816,1341.0,1340.9,0.05775045]
[1673281075390,23.90073816,1341.0,1340.9,0.05775045]
[1673281076634,45.74602378,1341.0,1340.9,0.05775045]
[1673281076864,46.13956279,1341.0,1340.9,0.05775045]
[1673281077187,45.03954623,1341.0,1340.9,0.05775045]
[1673281078546,43.82304623,1341.0,1340.9,0.05775045]
[1673281079120,42.70853166,1341.0,1340.9,0.05775045]
[1673281079370,43.8229744,1341.0,1340.9,0.05775045]
[1673281079583,42.70853166,1341.0,1340.9,0.05775045]
[1673281080441,44.92306279,1341.0,1340.9,0.05775045]
[1673281080606,43.82285137,1341.0,1340.9,0.05775045]
[1673281083022,28.90861137,1341.0,1340.9,0.05775045]
[1673281083683,36.36573137,1341.0,1340.9,0.05775045]
[1673281083857,43.82285137,1341.0,1340.9,0.05775045]
[1673281084064,15.37663419,1341.0,1340.9,0.05775045]
[1673281084295,15.20482688,1341.0,1340.9,0.05775045]
[1673281084535,22.66194688,1341.0,1340.9,0.05775045]
[1673281084752,40.99086717,1341.0,1340.9,0.05775045]
[1673281085058,42.83656532,1341.0,1340.9,0.05775045]
[1673281085271,43.37720561,1341.0,1340.9,0.05775045]
[1673281085643,42.50706323,1341.0,1340.9,0.05775045]
[1673281085893,43.06656323,1341.0,1340.9,0.05775045]
[1673281086102,47.78602502,1341.0,1340.9,0.05775045]
[1673281086323,45.01769151,1341.0,1340.9,0.05775045]
[1673281086531,47.78602502,1341.0,1340.9,0.05775045]
[1673281087779,37.56057151,1341.0,1340.9,0.05775045]
[1673281088067,46.68887297,1341.0,1340.9,0.05775045]
[1673281088533,45.01769151,1341.0,1340.9,0.05775045]
[1673281089479,47.78602502,1341.0,1340.9,0.05775045]
[1673281090189,55.73202502,1341.0,1340.9,0.05775045]
[1673281090595,52.96369151,1341.0,1340.9,0.05775045]
[1673281091001,54.63422622,1341.0,1340.9,0.05775045]
[1673281091213,52.96369151,1341.0,1340.9,0.05775045]
[1673281092061,54.63398948,1341.0,1340.9,0.05775045]
[1673281092269,46.68798948,1341.0,1340.9,0.05775045]
[1673281092474,46.68798948,1341.0,1340.9,0.05434044]
[1673281092475,44.47345835,1341.0,1340.9,0.05434044]
[1673281092840,46.68798948,1341.0,1340.9,0.05434044]
[1673281093009,52.96369151,1341.0,1340.9,0.05434044]
[1673281093221,57.87097651,1341.0,1340.9,0.05434044]
[1673281093451,53.51749389,1341.0,1340.9,0.05434044]
[1673281093643,46.43267247,1341.0,1340.9,0.05434044]
[1673281093862,22.45879599,1341.0,1340.9,0.05434044]
[1673281094102,19.95048868,1341.0,1340.9,0.05434044]
[1673281094497,11.35301343,1341.0,1340.9,0.05434044]
[1673281094837,9.68287517,1341.0,1340.9,0.05434044]
[1673281095440,21.66899517,1341.0,1340.9,0.05434044]
[1673281095836,21.89899517,1341.0,1340.9,0.05434044]
[1673281096311,29.35611517,1341.0,1340.9,0.05434044]
[1673281096528,34.25274878,1341.0,1340.9,0.05434044]
[1673281096887,41.70986878,1341.0,1340.9,0.05434044]
[1673281097097,42.26936878,1341.0,1340.9,0.05434044]
[1673281097348,14.57950878,1341.0,1340.9,0.05434044]
[1673281097563,9.68287517,1341.0,1340.9,0.05434044]
[1673281097722,8.56966064,1341.0,1340.9,0.05434044]
[1673281097937,9.68287517,1341.0,1340.9,0.05434044]
[1673281098406,7.91687517,1341.0,1340.9,0.05434044]
[1673281099153,34.81723517,1341.0,1340.9,0.05434044]
[1673281099306,25.00592246,1341.0,1340.9,0.05434044]
[1673281100609,20.13299517,1341.0,1340.9,0.05434044]